[Event "Schack-SM 2023: Sverigemastarklassen"]
[Site "Helsingborg Arena, Mellersta Stenbocksgatan 14, Helsingborg, Sweden"]
[Date "2023.07.08"]
[Round "8.3"]
[White "Ernst, Thomas"]
[Black "Olsson, William"]
[Result "1/2-1/2"]
[TimeControl "90 minutes for 40 moves + 30 minutes for the rest of the game + 30 seconds per move from move one."]
[WhiteTitle "GM"]
[BlackTitle "FM"]
[WhiteFideId "1700065"]
[BlackFideId "1741721"]
[WhiteElo "2288"]
[BlackElo "2383"]

1. e4 {[%clk 01:30:56]} {[%emt 00:00:03]} e5 {[%clk 01:30:54]} {[%emt
00:00:07]} 2. Nf3 {[%clk 01:31:16]} {[%emt 00:00:10]} Nc6 {[%clk 01:31:21]}
{[%emt 00:00:04]} 3. Bc4 {[%clk 01:31:21]} {[%emt 00:00:25]} Bc5 {[%clk
01:31:46]} {[%emt 00:00:06]} 4. c3 {[%clk 01:31:27]} {[%emt 00:00:23]} Nf6
{[%clk 01:32:14]} {[%emt 00:00:03]} 5. d4 {[%clk 01:31:47]} {[%emt 00:00:10]}
exd4 {[%clk 01:31:47]} {[%emt 00:00:57]} 6. e5 {[%clk 01:31:14]} {[%emt
00:01:02]} d5 {[%clk 01:29:12]} {[%emt 00:03:05]} 7. Bb5 {[%clk 01:31:31]}
{[%emt 00:00:12]} Ne4 {[%clk 01:26:44]} {[%emt 00:02:59]} 8. cxd4 {[%clk
01:31:48]} {[%emt 00:00:13]} Bb4+ {[%clk 01:24:36]} {[%emt 00:02:38]} 9. Nbd2
{[%clk 01:31:52]} {[%emt 00:00:25]} O-O {[%clk 01:22:22]} {[%emt 00:02:45]} 10.
O-O {[%clk 01:31:34]} {[%emt 00:00:47]} Bxd2 {[%clk 01:09:47]} {[%emt
00:13:06]} 11. Bxd2 {[%clk 01:31:05]} {[%emt 00:00:59]} Bg4 {[%clk 01:08:57]}
{[%emt 00:01:20]} 12. Be3 {[%clk 01:30:36]} {[%emt 00:00:57]} Ne7 {[%clk
01:05:53]} {[%emt 00:03:36]} 13. h3 {[%clk 01:24:15]} {[%emt 00:06:51]} Be6
{[%clk 01:00:35]} {[%emt 00:05:49]} 14. Bd3 {[%clk 01:21:04]} {[%emt 00:03:40]}
f5 {[%clk 01:00:40]} {[%emt 00:00:25]} 15. Ng5 {[%clk 01:11:31]} {[%emt
00:10:02]} Qd7 {[%clk 00:58:56]} {[%emt 00:02:16]} 16. Nxe6 {[%clk 01:06:35]}
{[%emt 00:05:26]} Qxe6 {[%clk 00:59:15]} {[%emt 00:00:11]} 17. f3 {[%clk
01:01:57]} {[%emt 00:05:08]} Ng3 {[%clk 00:59:41]} {[%emt 00:00:05]} 18. Re1
{[%clk 01:02:08]} {[%emt 00:00:18]} f4 {[%clk 00:58:11]} {[%emt 00:02:01]} 19.
Bf2 {[%clk 01:02:20]} {[%emt 00:00:17]} Ngf5 {[%clk 00:58:26]} {[%emt
00:00:15]} 20. Qd2 {[%clk 00:57:49]} {[%emt 00:05:00]} g5 {[%clk 00:52:51]}
{[%emt 00:06:06]} 21. Rac1 {[%clk 00:57:08]} {[%emt 00:01:09]} c6 {[%clk
00:51:44]} {[%emt 00:01:39]} 22. b4 {[%clk 00:50:07]} {[%emt 00:07:31]} a6
{[%clk 00:49:21]} {[%emt 00:02:54]} 23. a4 {[%clk 00:50:15]} {[%emt 00:00:21]}
b5 {[%clk 00:49:41]} {[%emt 00:00:10]} 24. Ra1 {[%clk 00:49:57]} {[%emt
00:00:47]} Kh8 {[%clk 00:39:18]} {[%emt 00:10:53]} 25. Ra2 {[%clk 00:49:34]}
{[%emt 00:00:54]} Rab8 {[%clk 00:36:34]} {[%emt 00:03:15]} 26. Rc1 {[%clk
00:47:53]} {[%emt 00:02:09]} h5 {[%clk 00:33:25]} {[%emt 00:03:39]} 27. axb5
{[%clk 00:46:24]} {[%emt 00:02:00]} axb5 {[%clk 00:33:44]} {[%emt 00:00:12]} 28.
Ra7 {[%clk 00:46:26]} {[%emt 00:00:24]} h4 {[%clk 00:32:13]} {[%emt 00:02:03]}
29. Qc2 {[%clk 00:42:23]} {[%emt 00:04:31]} Ng7 {[%clk 00:23:23]} {[%emt
00:09:23]} 30. Rca1 {[%clk 00:39:09]} {[%emt 00:03:43]} Kg8 {[%clk 00:16:04]}
{[%emt 00:07:50]} 31. Qc5 {[%clk 00:38:31]} {[%emt 00:01:06]} Rfe8 {[%clk
00:16:08]} {[%emt 00:00:27]} 32. Rc7 {[%clk 00:35:50]} {[%emt 00:03:08]} Rbc8
{[%clk 00:15:35]} {[%emt 00:01:05]} 33. Rb7 {[%clk 00:34:47]} {[%emt 00:01:31]}
Rb8 {[%clk 00:15:51]} {[%emt 00:00:17]} 34. Rxb8 {[%clk 00:34:47]} {[%emt
00:00:31]} Rxb8 {[%clk 00:16:15]} {[%emt 00:00:06]} 35. Ra7 {[%clk 00:31:13]}
{[%emt 00:04:02]} Re8 {[%clk 00:13:36]} {[%emt 00:03:08]} 36. Bb1 {[%clk
00:25:47]} {[%emt 00:05:58]} Kf8 {[%clk 00:13:18]} {[%emt 00:00:49]} 37. Bh7
{[%clk 00:22:42]} {[%emt 00:03:34]} Nh5 {[%clk 00:10:21]} {[%emt 00:03:29]} 38.
Qd6 {[%clk 00:19:55]} {[%emt 00:03:16]} Ng7 {[%clk 00:10:48]} {[%emt 00:00:04]}
39. Rd7 {[%clk 00:18:57]} {[%emt 00:01:26]} Ra8 {[%clk 00:10:16]} {[%emt
00:01:04]} 40. Qc7 {[%clk 00:16:44]} {[%emt 00:02:40]} Ne8 {[%clk 00:05:18]}
{[%emt 00:05:31]} 41. Qb7 {[%clk 00:15:54]} {[%emt 00:01:18]} Ra1+ {[%clk
00:04:02]} {[%emt 00:01:47]} 42. Kh2 {[%clk 00:16:08]} {[%emt 00:00:17]} Ra2
{[%clk 00:04:16]} {[%emt 00:00:17]} 43. Kg1 {[%clk 00:24:53]} {[%emt 00:21:44]}
Ra1+ {[%clk 00:34:22]} {[%emt 00:00:25]} 44. Kh2 {[%clk 00:25:16]} {[%emt
00:00:06]} Ra2 {[%clk 00:20:09]} {[%emt 00:14:43]} 45. Kg1 {[%clk 00:23:01]}
{[%emt 00:02:44]} Ra1+ {[%clk 00:19:59]} {[%emt 00:00:41]} 46. Kh2 {[%clk
00:23:23]} {[%emt 00:00:07]} Ra2 {[%clk 00:19:17]} {[%emt 00:01:13]} 47. Kg1
{[%clk 00:23:43]} {[%emt 00:00:09]} 1/2-1/2

[Event "Schack-SM 2023: Mastarklassen-elit"]
[Site "Helsingborg Arena, Mellersta Stenbocksgatan 14, Helsingborg, Sweden"]
[Date "2023.07.08"]
[Round "8.2"]
[White "Wiedenkeller, Michael"]
[Black "Lind, Jan-Olov"]
[Result "1-0"]
[TimeControl "90 minutes for 40 moves + 30 minutes for the rest of games + 30 seconds per move from move one."]
[WhiteTitle "IM"]
[WhiteElo "2445"]
[BlackElo "2191"]

1. d4 {[%clk 01:30:27]} {[%emt 00:00:31]} g6 {[%clk 01:30:47]} {[%emt
00:00:14]} 2. e4 {[%clk 01:27:46]} {[%emt 00:03:11]} Bg7 {[%clk 01:31:10]}
{[%emt 00:00:07]} 3. Nc3 {[%clk 01:27:50]} {[%emt 00:00:26]} d6 {[%clk
01:31:24]} {[%emt 00:00:16]} 4. Be3 {[%clk 01:26:24]} {[%emt 00:01:56]} a6
{[%clk 01:31:15]} {[%emt 00:00:39]} 5. Nf3 {[%clk 01:21:28]} {[%emt 00:05:26]}
b5 {[%clk 01:27:49]} {[%emt 00:03:57]} 6. Bd3 {[%clk 01:20:23]} {[%emt
00:01:34]} Bb7 {[%clk 01:13:18]} {[%emt 00:15:01]} 7. h4 {[%clk 01:16:26]}
{[%emt 00:04:27]} Nf6 {[%clk 00:51:39]} {[%emt 00:22:09]} 8. e5 {[%clk
01:07:30]} {[%emt 00:09:26]} dxe5 {[%clk 00:47:07]} {[%emt 00:05:02]} 9. dxe5
{[%clk 01:03:05]} {[%emt 00:04:55]} Nd5 {[%clk 00:46:36]} {[%emt 00:01:02]} 10.
Bd2 {[%clk 00:57:08]} {[%emt 00:06:26]} Nxc3 {[%clk 00:46:11]} {[%emt
00:00:55]} 11. Bxc3 {[%clk 00:57:10]} {[%emt 00:00:28]} Qd5 {[%clk 00:46:09]}
{[%emt 00:00:32]} 12. h5 {[%clk 00:39:22]} {[%emt 00:18:18]} O-O {[%clk
00:42:51]} {[%emt 00:03:48]} 13. Qe2 {[%clk 00:32:13]} {[%emt 00:07:39]} c5
{[%clk 00:36:20]} {[%emt 00:07:02]} 14. Rh4 {[%clk 00:29:51]} {[%emt 00:02:52]}
Nc6 {[%clk 00:29:59]} {[%emt 00:06:50]} 15. Be4 {[%clk 00:28:41]} {[%emt
00:01:40]} Qd7 {[%clk 00:26:48]} {[%emt 00:03:40]} 16. hxg6 {[%clk 00:25:36]}
{[%emt 00:03:37]} hxg6 {[%clk 00:26:35]} {[%emt 00:00:43]} 17. Qe3 {[%clk
00:18:44]} {[%emt 00:07:21]} Nb4 {[%clk 00:16:45]} {[%emt 00:10:20]} 18. Bxb4
{[%clk 00:13:15]} {[%emt 00:06:00]} Bxe4 {[%clk 00:14:54]} {[%emt 00:02:20]} 19.
Rxe4 {[%clk 00:12:37]} {[%emt 00:01:08]} cxb4 {[%clk 00:15:13]} {[%emt
00:00:12]} 20. Rxb4 {[%clk 00:12:51]} {[%emt 00:00:16]} Qc6 {[%clk 00:13:17]}
{[%emt 00:02:26]} 21. c3 {[%clk 00:11:49]} {[%emt 00:01:32]} a5 {[%clk
00:12:18]} {[%emt 00:01:29]} 22. Rd4 {[%clk 00:11:10]} {[%emt 00:01:09]} Rfd8
{[%clk 00:10:10]} {[%emt 00:02:37]} 23. Rad1 {[%clk 00:10:57]} {[%emt
00:00:42]} Rxd4 {[%clk 00:10:14]} {[%emt 00:00:28]} 24. Rxd4 {[%clk 00:09:14]}
{[%emt 00:02:13]} b4 {[%clk 00:07:19]} {[%emt 00:03:25]} 25. c4 {[%clk
00:07:47]} {[%emt 00:01:56]} Qa4 {[%clk 00:06:42]} {[%emt 00:01:07]} 26. Qb3
{[%clk 00:07:08]} {[%emt 00:01:09]} Qc6 {[%clk 00:06:33]} {[%emt 00:00:39]} 27.
Qd1 {[%clk 00:06:27]} {[%emt 00:01:09]} Qc7 {[%clk 00:06:22]} {[%emt 00:00:44]}
28. Qe2 {[%clk 00:06:08]} {[%emt 00:00:48]} Rc8 {[%clk 00:06:04]} {[%emt
00:00:49]} 29. b3 {[%clk 00:05:30]} {[%emt 00:01:08]} a4 {[%clk 00:04:33]}
{[%emt 00:02:01]} 30. g3 {[%clk 00:03:35]} {[%emt 00:02:25]} axb3 31. axb3
{[%clk 00:04:04]} Ra8 {[%clk 00:03:51]} {[%emt 00:01:31]} 32. Kf1 {[%clk
00:03:50]} {[%emt 00:00:45]} Ra3 {[%clk 00:04:01]} {[%emt 00:00:19]} 33. Rd3
{[%clk 00:03:55]} {[%emt 00:00:25]} Qc6 {[%clk 00:03:41]} {[%emt 00:00:50]} 34.
Rd8+ {[%clk 00:03:15]} {[%emt 00:01:10]} Bf8 {[%clk 00:04:09]} {[%emt
00:00:02]} 35. Qd3 {[%clk 00:02:52]} {[%emt 00:00:53]} Ra8 {[%clk 00:03:06]}
{[%emt 00:01:34]} 36. Rxa8 {[%clk 00:02:00]} {[%emt 00:01:22]} Qxa8 {[%clk
00:03:34]} {[%emt 00:00:02]} 37. e6 {[%clk 00:02:03]} {[%emt 00:00:26]} Qa1+
{[%clk 00:03:11]} {[%emt 00:00:54]} 38. Kg2 {[%clk 00:02:25]} {[%emt 00:00:08]}
Qc3 {[%clk 00:01:20]} {[%emt 00:02:20]} 39. exf7+ {[%clk 00:01:36]} {[%emt
00:01:20]} Kg7 {[%clk 00:00:56]} {[%emt 00:00:54]} 40. Qd5 {[%clk 00:00:49]}
{[%emt 00:01:17]} Qxb3 {[%clk 00:00:36]} {[%emt 00:00:50]} 41. Qe5+ {[%clk
00:21:39]} {[%emt 00:09:39]} Kxf7 {[%clk 00:26:44]} {[%emt 00:04:22]} 42. Ng5+
{[%clk 00:21:51]} {[%emt 00:00:17]} Ke8 {[%clk 00:25:32]} {[%emt 00:01:43]} 43.
Qb5+ {[%clk 00:21:44]} {[%emt 00:00:37]} 1-0

[Event "Schack-SM 2023: Junior-SM"]
[Site "Helsingborg Arena, Mellersta Stenbocksgatan 14, Helsingborg, Sweden"]
[Date "2023.07.08"]
[Round "8.5"]
[White "Lindholm, Gustav"]
[Black "Falkevall, Axel"]
[Result "1/2-1/2"]
[TimeControl "90 minutes for 40 moves + 30 minutes for the rest of the game + 30 seconds per move from move one."]
[BlackTitle "FM"]
[WhiteElo "2155"]
[BlackElo "2311"]

1. d4 {[%clk 01:30:58]} {[%emt 00:00:01]} Nf6 {[%clk 01:30:56]} {[%emt
00:00:04]} 2. c4 {[%clk 01:31:24]} {[%emt 00:00:04]} g6 {[%clk 01:31:23]}
{[%emt 00:00:04]} 3. g3 {[%clk 01:31:50]} {[%emt 00:00:04]} Bg7 {[%clk
01:31:49]} {[%emt 00:00:04]} 4. Bg2 {[%clk 01:32:15]} {[%emt 00:00:04]} O-O
{[%clk 01:32:15]} {[%emt 00:00:05]} 5. Nc3 {[%clk 01:32:40]} {[%emt 00:00:05]}
d6 {[%clk 01:32:41]} {[%emt 00:00:03]} 6. Nf3 {[%clk 01:33:03]} {[%emt
00:00:08]} c5 {[%clk 01:33:06]} {[%emt 00:00:05]} 7. O-O {[%clk 01:33:25]}
{[%emt 00:00:07]} Nc6 {[%clk 01:33:32]} {[%emt 00:00:04]} 8. dxc5 {[%clk
01:33:43]} {[%emt 00:00:13]} dxc5 {[%clk 01:33:58]} {[%emt 00:00:04]} 9. Bf4
{[%clk 01:34:05]} {[%emt 00:00:08]} Nh5 {[%clk 01:34:18]} {[%emt 00:00:09]} 10.
Be3 {[%clk 01:34:30]} {[%emt 00:00:06]} b6 {[%clk 01:34:41]} {[%emt 00:00:08]}
11. Qc1 {[%clk 01:34:27]} {[%emt 00:00:33]} Bb7 {[%clk 01:33:52]} {[%emt
00:01:18]} 12. Bh6 {[%clk 01:34:10]} {[%emt 00:00:47]} Qe8 {[%clk 01:33:48]}
{[%emt 00:00:34]} 13. Qe3 {[%clk 01:33:45]} {[%emt 00:00:56]} f6 {[%clk
01:33:44]} {[%emt 00:00:34]} 14. Rad1 {[%clk 01:28:26]} {[%emt 00:05:49]} Bxh6
{[%clk 01:33:55]} {[%emt 00:00:19]} 15. Qxh6 {[%clk 01:28:51]} {[%emt
00:00:05]} Ng7 {[%clk 01:34:19]} {[%emt 00:00:06]} 16. h4 {[%clk 01:24:02]}
{[%emt 00:05:19]} Nf5 {[%clk 01:30:18]} {[%emt 00:04:30]} 17. Qc1 {[%clk
01:23:51]} {[%emt 00:00:41]} Rd8 {[%clk 01:19:10]} {[%emt 00:11:39]} 18. e3
{[%clk 01:12:56]} {[%emt 00:11:25]} Rxd1 {[%clk 01:08:39]} {[%emt 00:11:02]} 19.
Rxd1 {[%clk 01:12:21]} {[%emt 00:01:05]} Qa8 {[%clk 01:08:17]} {[%emt
00:00:51]} 20. Nd5 {[%clk 00:58:41]} {[%emt 00:14:10]} Rd8 {[%clk 00:55:16]}
{[%emt 00:13:31]} 21. Qb1 {[%clk 00:48:28]} {[%emt 00:10:43]} Kg7 {[%clk
00:44:09]} {[%emt 00:11:37]} 22. b3 {[%clk 00:37:32]} {[%emt 00:11:26]} Qb8
{[%clk 00:38:00]} {[%emt 00:06:39]} 23. Nd2 {[%clk 00:27:38]} {[%emt 00:10:24]}
Ne5 {[%clk 00:28:04]} {[%emt 00:10:26]} 24. Ne4 {[%clk 00:24:09]} {[%emt
00:03:59]} Bxd5 {[%clk 00:26:28]} {[%emt 00:02:06]} 25. cxd5 {[%clk 00:24:06]}
{[%emt 00:00:32]} Nd6 {[%clk 00:23:48]} {[%emt 00:03:10]} 26. Nxd6 {[%clk
00:22:27]} {[%emt 00:02:10]} Qxd6 {[%clk 00:23:03]} {[%emt 00:01:14]} 27. Bh3
{[%clk 00:18:10]} {[%emt 00:04:47]} f5 {[%clk 00:20:57]} {[%emt 00:02:36]} 28.
Qb2 {[%clk 00:14:38]} {[%emt 00:04:02]} Qf6 {[%clk 00:20:11]} {[%emt 00:01:16]}
29. Qe2 {[%clk 00:14:46]} {[%emt 00:00:21]} Nf7 {[%clk 00:10:55]} {[%emt
00:09:46]} 30. Bg2 {[%clk 00:13:27]} {[%emt 00:01:49]} Nd6 {[%clk 00:11:03]}
{[%emt 00:00:22]} 31. f3 {[%clk 00:13:07]} {[%emt 00:00:51]} Qe5 {[%clk
00:10:05]} {[%emt 00:01:28]} 32. f4 {[%clk 00:12:00]} {[%emt 00:01:37]} Qc3
{[%clk 00:09:29]} {[%emt 00:01:05]} 33. Rd3 {[%clk 00:11:43]} {[%emt 00:00:48]}
Qf6 {[%clk 00:09:25]} {[%emt 00:00:32]} 34. Kh2 {[%clk 00:10:57]} {[%emt
00:01:16]} Re8 {[%clk 00:06:50]} {[%emt 00:03:06]} 35. Rd1 {[%clk 00:06:10]}
{[%emt 00:05:17]} c4 {[%clk 00:03:08]} {[%emt 00:04:13]} 36. bxc4 {[%clk
00:06:08]} {[%emt 00:00:32]} Qc3 {[%clk 00:03:24]} {[%emt 00:00:14]} 37. e4
{[%clk 00:02:37]} {[%emt 00:04:00]} fxe4 {[%clk 00:03:16]} {[%emt 00:00:38]} 38.
Bxe4 {[%clk 00:02:05]} {[%emt 00:01:02]} Nxc4 {[%clk 00:02:29]} {[%emt
00:01:17]} 39. Bg2 {[%clk 00:01:41]} {[%emt 00:00:53]} Nd6 {[%clk 00:01:08]}
{[%emt 00:01:52]} 40. Qe5+ {[%clk 00:01:12]} {[%emt 00:00:59]} Qxe5 {[%clk
00:01:32]} {[%emt 00:00:05]} 41. fxe5 {[%clk 00:01:39]} {[%emt 00:00:03]} Nc4
{[%clk 00:29:12]} {[%emt 00:02:50]} 42. Re1 {[%clk 00:24:22]} {[%emt 00:07:47]}
Rf8 {[%clk 00:23:16]} {[%emt 00:06:26]} 43. Re2 {[%clk 00:18:45]} {[%emt
00:06:08]} Rf5 {[%clk 00:18:08]} {[%emt 00:05:39]} 44. e6 {[%clk 00:19:06]}
{[%emt 00:00:08]} Rf8 {[%clk 00:16:48]} {[%emt 00:01:50]} 45. Rc2 {[%clk
00:11:14]} {[%emt 00:08:20]} Rc8 {[%clk 00:13:04]} {[%emt 00:04:15]} 46. g4
{[%clk 00:11:16]} {[%emt 00:00:28]} Nd6 {[%clk 00:09:27]} {[%emt 00:04:08]} 47.
Rxc8 {[%clk 00:06:31]} {[%emt 00:05:15]} Nxc8 {[%clk 00:09:53]} {[%emt
00:00:04]} 48. g5 {[%clk 00:06:56]} {[%emt 00:00:04]} Nd6 {[%clk 00:09:42]}
{[%emt 00:00:41]} 49. Kg3 {[%clk 00:06:07]} {[%emt 00:01:19]} a5 {[%clk
00:06:05]} {[%emt 00:04:08]} 50. Kf4 {[%clk 00:06:05]} {[%emt 00:00:32]} b5
{[%clk 00:05:58]} {[%emt 00:00:37]} 51. Bf3 {[%clk 00:03:26]} {[%emt 00:03:09]}
b4 {[%clk 00:03:22]} {[%emt 00:03:07]} 52. Bd1 {[%clk 00:03:45]} {[%emt
00:00:10]} Nb5 {[%clk 00:02:19]} {[%emt 00:01:33]} 53. Ke5 {[%clk 00:03:40]}
{[%emt 00:00:35]} Kf8 {[%clk 00:02:37]} {[%emt 00:00:12]} 54. Ba4 {[%clk
00:02:15]} {[%emt 00:01:55]} Nd6 {[%clk 00:02:24]} {[%emt 00:00:43]} 55. Kd4
{[%clk 00:01:10]} {[%emt 00:01:34]} Nf5+ {[%clk 00:02:23]} {[%emt 00:00:31]} 56.
Kc5 {[%clk 00:01:22]} {[%emt 00:00:19]} Nxh4 {[%clk 00:02:19]} {[%emt
00:00:34]} 57. d6 {[%clk 00:01:33]} {[%emt 00:00:18]} exd6+ {[%clk 00:02:36]}
{[%emt 00:00:13]} 58. Kxd6 {[%clk 00:02:00]} {[%emt 00:00:04]} Nf5+ {[%clk
00:02:59]} {[%emt 00:00:07]} 59. Kd7 {[%clk 00:02:24]} {[%emt 00:00:05]} Ne7
{[%clk 00:03:08]} {[%emt 00:00:21]} 60. Bb3 {[%clk 00:02:09]} {[%emt 00:00:45]}
Nf5 {[%clk 00:03:10]} {[%emt 00:00:28]} 61. Bc2 {[%clk 00:01:50]} {[%emt
00:00:49]} Ne7 {[%clk 00:03:29]} {[%emt 00:00:10]} 62. Bb3 {[%clk 00:01:03]}
{[%emt 00:01:18]} Nf5 {[%clk 00:03:42]} {[%emt 00:00:16]} 63. Bc2 {[%clk
00:00:44]} {[%emt 00:00:50]} Ne7 {[%clk 00:04:07]} {[%emt 00:00:05]} 64. Ba4
{[%clk 00:00:38]} {[%emt 00:00:36]} Nf5 {[%clk 00:04:30]} {[%emt 00:00:06]} 65.
Bb5 {[%clk 00:00:44]} {[%emt 00:00:25]} Ne7 {[%clk 00:04:39]} {[%emt 00:00:20]}
66. Ba4 {[%clk 00:00:41]} {[%emt 00:00:34]} Nf5 {[%clk 00:04:36]} {[%emt
00:00:32]} 1/2-1/2

[Event "Schack-SM 2023: Sverigemastarklassen"]
[Site "Helsingborg Arena, Mellersta Stenbocksgatan 14, Helsingborg, Sweden"]
[Date "2023.07.08"]
[Round "8.4"]
[White "Sivuk, Vitaly"]
[Black "Kucuksari, Kaan"]
[Result "1/2-1/2"]
[TimeControl "90 minutes for 40 moves + 30 minutes for the rest of the game + 30 seconds per move from move one."]
[WhiteTitle "GM"]
[BlackTitle "IM"]
[WhiteFideId "14116502"]
[BlackFideId "6380166"]
[WhiteElo "2432"]
[BlackElo "2512"]

1. e4 {[%clk 01:26:19]} {[%emt 00:04:30]} c5 {[%clk 01:30:49]} {[%emt
00:00:12]} 2. Nf3 {[%clk 01:26:39]} {[%emt 00:00:09]} e6 {[%clk 01:31:13]}
{[%emt 00:00:07]} 3. d4 {[%clk 01:27:01]} {[%emt 00:00:08]} cxd4 {[%clk
01:31:40]} {[%emt 00:00:04]} 4. Nxd4 {[%clk 01:27:24]} {[%emt 00:00:06]} a6
{[%clk 01:32:08]} {[%emt 00:00:02]} 5. c4 {[%clk 01:27:39]} {[%emt 00:00:14]}
Nf6 {[%clk 01:32:35]} {[%emt 00:00:03]} 6. Nc3 {[%clk 01:27:58]} {[%emt
00:00:11]} Qc7 {[%clk 01:33:00]} {[%emt 00:00:05]} 7. Be2 {[%clk 01:28:14]}
{[%emt 00:00:13]} Bb4 {[%clk 01:32:50]} {[%emt 00:00:41]} 8. Qd3 {[%clk
01:28:03]} {[%emt 00:00:41]} Nc6 {[%clk 01:26:57]} {[%emt 00:06:24]} 9. O-O
{[%clk 01:27:31]} {[%emt 00:01:02]} Nxd4 {[%clk 01:16:39]} {[%emt 00:10:49]} 10.
Qxd4 {[%clk 01:27:48]} {[%emt 00:00:12]} d6 {[%clk 01:17:00]} {[%emt 00:00:09]}
11. Be3 {[%clk 01:02:58]} {[%emt 00:25:20]} e5 {[%clk 01:13:14]} {[%emt
00:04:16]} 12. Qd3 {[%clk 01:00:51]} {[%emt 00:02:36]} Bxc3 {[%clk 01:13:24]}
{[%emt 00:00:21]} 13. Qxc3 {[%clk 00:58:14]} {[%emt 00:03:07]} Nxe4 {[%clk
01:13:18]} {[%emt 00:00:37]} 14. Qa3 {[%clk 00:58:34]} {[%emt 00:00:09]} O-O
{[%clk 01:12:02]} {[%emt 00:01:46]} 15. Rfd1 {[%clk 00:56:12]} {[%emt
00:02:51]} Bf5 {[%clk 00:58:37]} {[%emt 00:13:56]} 16. Bd3 {[%clk 00:47:35]}
{[%emt 00:09:07]} Bg6 {[%clk 00:58:47]} {[%emt 00:00:21]} 17. Bxe4 {[%clk
00:46:14]} {[%emt 00:01:51]} Bxe4 {[%clk 00:57:56]} {[%emt 00:01:21]} 18. Qxd6
{[%clk 00:46:37]} {[%emt 00:00:06]} Qxc4 {[%clk 00:52:22]} {[%emt 00:06:05]} 19.
Qxe5 {[%clk 00:45:33]} {[%emt 00:01:33]} Bc6 {[%clk 00:49:58]} {[%emt
00:02:54]} 20. b3 {[%clk 00:32:58]} {[%emt 00:13:04]} Qg4 {[%clk 00:49:45]}
{[%emt 00:00:43]} 21. Qg3 {[%clk 00:32:50]} {[%emt 00:00:37]} Qxg3 {[%clk
00:48:33]} {[%emt 00:01:43]} 22. hxg3 {[%clk 00:33:18]} {[%emt 00:00:01]} Rfe8
{[%clk 00:48:38]} {[%emt 00:00:26]} 23. Rd2 {[%clk 00:31:29]} {[%emt 00:02:18]}
f6 {[%clk 00:49:06]} {[%emt 00:00:02]} 24. Rad1 {[%clk 00:31:32]} {[%emt
00:00:27]} Kf7 {[%clk 00:49:35]} {[%emt 00:00:02]} 25. Bb6 {[%clk 00:31:04]}
{[%emt 00:00:58]} h5 {[%clk 00:49:05]} {[%emt 00:01:00]} 26. a4 {[%clk
00:29:57]} {[%emt 00:01:36]} Re6 {[%clk 00:48:23]} {[%emt 00:01:12]} 27. Rd6
{[%clk 00:29:18]} {[%emt 00:01:09]} Rxd6 {[%clk 00:43:40]} {[%emt 00:05:13]} 28.
Rxd6 {[%clk 00:28:04]} {[%emt 00:01:43]} Re8 {[%clk 00:43:12]} {[%emt
00:00:58]} 29. Kf1 {[%clk 00:25:38]} {[%emt 00:02:55]} Re4 {[%clk 00:40:00]}
{[%emt 00:03:43]} 30. Bc5 {[%clk 00:25:11]} {[%emt 00:00:56]} Re5 {[%clk
00:38:17]} {[%emt 00:02:13]} 31. Bd4 {[%clk 00:24:47]} {[%emt 00:00:54]} Rf5
{[%clk 00:38:14]} {[%emt 00:00:33]} 32. Be3 {[%clk 00:23:25]} {[%emt 00:01:52]}
Ke7 {[%clk 00:35:50]} {[%emt 00:02:54]} 33. Rd4 {[%clk 00:23:32]} {[%emt
00:00:22]} Re5 {[%clk 00:27:57]} {[%emt 00:08:24]} 34. Bf4 {[%clk 00:21:40]}
{[%emt 00:02:22]} Re6 {[%clk 00:28:12]} {[%emt 00:00:15]} 35. Be3 {[%clk
00:20:41]} {[%emt 00:01:28]} g5 {[%clk 00:26:10]} {[%emt 00:02:33]} 36. Rd2
{[%clk 00:09:03]} {[%emt 00:12:07]} Kf7 {[%clk 00:23:56]} {[%emt 00:02:45]} 37.
Rd8 {[%clk 00:05:37]} {[%emt 00:03:56]} Be4 {[%clk 00:21:23]} {[%emt 00:03:03]}
38. b4 {[%clk 00:05:20]} {[%emt 00:00:47]} Bc6 {[%clk 00:18:00]} {[%emt
00:03:53]} 39. a5 {[%clk 00:05:42]} {[%emt 00:00:08]} Re4 {[%clk 00:18:08]}
{[%emt 00:00:23]} 40. Rd4 {[%clk 00:05:57]} {[%emt 00:00:14]} Rxd4 {[%clk
00:16:15]} {[%emt 00:02:23]} 41. Bxd4 {[%clk 00:06:21]} {[%emt 00:00:06]} g4
{[%clk 00:16:13]} {[%emt 00:00:33]} 42. Bc5 {[%clk 00:05:58]} {[%emt 00:00:52]}
f5 {[%clk 00:16:38]} {[%emt 00:00:05]} 1/2-1/2